bitfinex/quotes_BTCUSD_20240905
["timestamp","ask_amount","ask_price","bid_price","bid_amount"]
[1725557020774,0.24416988,56528.0,56521.0,0.176924]
[1725557021017,0.24416988,56524.0,56521.0,0.166924]
[1725557021227,0.24416988,56524.0,56517.0,0.353875]
[1725557021448,0.24416988,56524.0,56518.0,0.176933]
[1725557021882,0.24416988,56524.0,56513.0,0.01]
[1725557022100,0.353794,56530.0,56513.0,0.01]
[1725557022101,0.16484084,56528.0,56520.0,0.176927]
[1725557022314,0.176907,56527.0,56520.0,0.176927]
[1725557022516,0.176907,56527.0,56524.0,0.01]
[1725557022719,0.16584084,56528.0,56511.0,0.176956]
[1725557022720,0.706425,56525.0,56511.0,0.176956]
[1725557022937,0.706425,56525.0,56505.0,0.176974]
[1725557022938,0.49328394,56513.0,56505.0,0.176974]
[1725557023166,0.49328394,56513.0,56503.0,0.355587]
[1725557023167,0.1537,56512.0,56503.0,0.00163]
[1725557023387,0.1537,56512.0,56506.0,0.176969]
[1725557023583,0.1537,56512.0,56504.0,0.355589]
[1725557023794,0.330655,56512.0,56505.0,0.176974]
[1725557024009,0.353914,56511.0,56504.0,0.001632]
[1725557024215,0.176959,56511.0,56504.0,0.178609]
[1725557024428,0.1537,56512.0,56504.0,0.178609]
[1725557024429,0.30558394,56508.0,56504.0,0.001632]
[1725557024641,0.353938,56507.0,56504.0,0.001632]
[1725557024850,0.176973,56506.0,56504.0,0.001632]
[1725557025055,0.30558394,56508.0,56504.0,0.001632]
[1725557025486,0.353915,56511.0,56504.0,0.003632]
[1725557025708,0.1537,56512.0,56504.0,0.003632]
[1725557025709,0.1537,56512.0,56505.0,0.176974]
[1725557025969,0.176961,56510.0,56504.0,0.181609]
[1725557026204,0.176975,56505.0,56504.0,0.001632]
[1725557026436,0.530925,56505.0,56504.0,0.001632]
[1725557027330,0.531925,56505.0,56504.0,0.002632]
[1725557027736,0.530925,56505.0,56504.0,0.002632]
[1725557028160,0.531925,56505.0,56504.0,0.002632]
[1725557028383,0.531925,56505.0,56504.0,0.001632]
[1725557028833,0.531925,56505.0,56504.0,0.005632]
[1725557029482,0.885875,56505.0,56504.0,0.005632]
[1725557029919,1.239825,56505.0,56504.0,0.005632]
[1725557031220,0.885875,56505.0,56504.0,0.005632]
[1725557031821,0.531925,56505.0,56504.0,0.005632]
[1725557032051,0.885875,56505.0,56504.0,0.005632]
[1725557032310,1.239825,56505.0,56504.0,0.005632]
[1725557033599,1.238825,56505.0,56504.0,0.005632]
[1725557035563,0.884875,56505.0,56504.0,0.005632]
[1725557035983,0.30558394,56506.0,56504.0,0.005632]
[1725557036243,0.30558394,56511.0,56504.0,0.005632]
[1725557036454,0.16,56513.0,56504.0,0.005632]
[1725557036455,0.530925,56505.0,56504.0,0.005632]
[1725557037111,0.530925,56505.0,56504.0,0.001632]
[1725557037112,0.884875,56505.0,56504.0,0.001632]
[1725557037334,0.884875,56505.0,56504.0,0.004632]
[1725557038631,0.884875,56505.0,56504.0,0.001632]
[1725557039098,1.238825,56505.0,56504.0,0.009632]
[1725557042924,0.000816,56507.0,56506.0,0.176972]
[1725557043132,0.000816,56507.0,56504.0,0.204832]
[1725557043351,0.176975,56505.0,56504.0,0.009632]
[1725557043584,0.000816,56507.0,56504.0,0.009632]
[1725557043793,0.000816,56507.0,56504.0,0.18661]
[1725557044055,0.000816,56507.0,56504.0,0.182609]
[1725557044260,0.000816,56507.0,56506.0,0.530916]
[1725557044670,0.47631036,56518.0,56510.0,0.176958]
[1725557044901,0.2446125,56513.0,56507.0,0.353936]
[1725557045117,0.2446125,56513.0,56509.0,0.530885]
[1725557045365,0.00308093,56521.0,56506.0,0.004]
[1725557045366,0.1892,56529.0,56518.0,0.1952]
[1725557045587,0.52650515,56524.0,56518.0,0.1952]
[1725557045794,0.353825,56526.0,56510.0,0.33011096]
[1725557045795,0.353825,56526.0,56519.0,0.17693]
[1725557046001,0.353825,56526.0,56517.0,0.530809]
[1725557046002,0.007,56518.0,56517.0,0.530809]
[1725557046851,0.176912,56525.0,56519.0,0.17693]
[1725557047065,0.176912,56525.0,56520.0,0.176927]
[1725557047279,0.188901,56529.0,56520.0,0.353855]
[1725557047494,0.176904,56528.0,56515.0,0.353886]
[1725557047705,0.176904,56528.0,56520.0,0.353854]
[1725557047956,0.1889,56529.0,56523.0,0.176918]
[1725557048374,0.1889,56529.0,56520.0,0.353854]
[1725557048375,0.012,56529.0,56524.0,0.353831]
[1725557048633,0.012,56529.0,56528.0,0.176903]
[1725557048899,0.00308073,56532.0,56531.0,0.530682]
[1725557049141,0.01851626,56547.0,56546.0,0.176847]
[1725557049379,0.161716,56548.0,56547.0,0.176844]
[1725557049380,0.000816,56548.0,56547.0,0.176844]
[1725557049612,0.000816,56548.0,56547.0,1.05973096]
[1725557049828,0.000816,56548.0,56547.0,1.41341896]
[1725557050741,0.000816,56548.0,56547.0,1.237908]
[1725557051245,0.000816,56548.0,56547.0,0.88422]
[1725557051461,0.000816,56548.0,56547.0,0.530532]
[1725557051962,0.000816,56548.0,56543.0,0.2017]
[1725557052180,0.000816,56548.0,56543.0,0.176855]
[1725557052413,0.000816,56548.0,56538.0,0.555443]
[1725557052414,0.176857,56543.0,56538.0,0.176871]
[1725557052647,0.1974,56544.0,56541.0,0.176862]
[1725557052884,0.17686,56542.0,56533.0,0.2017]
[1725557053142,0.374255,56544.0,56533.0,0.2017]
[1725557053367,0.374255,56544.0,56543.0,0.01]
[1725557053368,0.1974,56544.0,56543.0,0.01]
[1725557053590,0.17686,56542.0,56537.0,0.176873]
[1725557053815,0.003,56543.0,56538.0,0.176871]
[1725557054038,0.003,56543.0,56535.0,0.353757]
[1725557054039,0.17686,56542.0,56535.0,0.353757]
[1725557054269,0.17686,56542.0,56537.0,0.176874]
[1725557054493,0.176862,56541.0,56535.0,0.353757]
[1725557054721,0.176874,56538.0,56529.0,0.1998]
[1725557054946,0.176874,56538.0,56522.0,0.353842]
[1725557054947,0.17688,56536.0,56532.0,0.176889]
[1725557055173,0.3449,56544.0,56524.0,0.1994]
[1725557055406,0.023,56543.0,56524.0,0.1994]
[1725557055665,0.023,56543.0,56531.0,0.176892]
[1725557055666,0.176879,56536.0,56531.0,0.176892]
[1725557055880,0.176881,56535.0,56529.0,0.353798]
[1725557056108,0.176881,56535.0,56531.0,0.176893]
[1725557056562,0.3053307,56540.0,56528.0,0.176902]
[1725557056563,0.17689,56533.0,56528.0,0.176902]
[1725557056788,0.353745,56538.0,56532.0,0.17689]
[1725557057016,0.176879,56536.0,56532.0,0.17689]
[1725557057463,0.353764,56535.0,56531.0,0.003]
[1725557057712,0.353745,56538.0,56531.0,0.356785]
[1725557057927,0.023,56537.0,56532.0,0.353778]
[1725557058206,0.353714,56543.0,56535.0,0.353759]
[1725557058464,0.199862,56542.0,56538.0,0.176871]
[1725557058673,0.176867,56540.0,56536.0,0.176876]
[1725557059134,0.176862,56541.0,56536.0,0.176876]
[1725557059598,0.176862,56541.0,56537.0,0.176875]
[1725557060059,0.003,56540.0,56537.0,0.176875]
[1725557060313,0.003,56540.0,56538.0,0.176871]
[1725557060535,0.199861,56542.0,56538.0,0.176871]
[1725557060536,0.023,56542.0,56540.0,0.176865]
[1725557060760,0.023,56542.0,56536.0,0.353751]
[1725557060761,0.003,56541.0,56536.0,0.001]
[1725557060976,0.003,56541.0,56540.0,0.530596]
[1725557061194,0.003,56541.0,56540.0,0.884327]
[1725557061609,0.01,56541.0,56540.0,0.884327]
[1725557062027,0.003,56541.0,56540.0,1.238058]
[1725557062239,0.000816,56548.0,56547.0,0.530532]
[1725557062452,0.000816,56548.0,56540.0,0.004]
[1725557062671,0.3402,56547.0,56540.0,0.004]
[1725557062875,0.530587,56541.0,56540.0,0.004]
[1725557063137,0.353725,56541.0,56540.0,0.005]
[1725557063360,0.907312,56541.0,56540.0,0.005]
[1725557063579,0.176876,56537.0,56530.0,0.35379]
[1725557063815,0.376725,56541.0,56527.0,0.3435]
[1725557063816,0.023,56541.0,56527.0,0.3435]
[1725557064049,0.176869,56539.0,56536.0,0.176877]
[1725557064454,0.176869,56539.0,56535.0,0.176881]
[1725557064720,0.176866,56540.0,56537.0,0.176874]
[1725557064928,0.176866,56540.0,56535.0,0.35376]
[1725557064929,0.023,56539.0,56535.0,0.176879]
[1725557065153,0.000816,56541.0,56527.0,0.3435]
[1725557065360,0.000816,56541.0,56539.0,0.176867]
[1725557065564,0.006816,56541.0,56540.0,0.001]
[1725557065991,0.000816,56541.0,56539.0,0.176867]
[1725557066429,0.000816,56541.0,56537.0,0.530617]
[1725557066430,0.008816,56541.0,56537.0,0.530617]
[1725557066639,0.008816,56541.0,56538.0,0.176869]
[1725557066844,0.000816,56541.0,56538.0,0.176869]
[1725557067062,0.003816,56541.0,56538.0,0.176869]
[1725557067271,0.005816,56541.0,56537.0,0.176874]
[1725557067472,0.182681,56541.0,56537.0,0.176874]
[1725557067686,0.185681,56541.0,56537.0,0.176874]
[1725557067893,0.008816,56541.0,56528.0,0.52650515]
[1725557068119,0.008816,56541.0,56540.0,1.432858]
[1725557068567,0.003816,56541.0,56540.0,1.432858]
[1725557068794,0.008816,56541.0,56540.0,1.079127]
[1725557069007,0.005816,56541.0,56540.0,1.079127]
[1725557069231,0.000816,56541.0,56540.0,1.079127]
[1725557069441,0.000816,56541.0,56540.0,1.432858]
[1725557069654,0.003816,56541.0,56540.0,1.079127]
[1725557069851,0.001816,56541.0,56540.0,1.087127]
[1725557070066,0.00489544,56541.0,56540.0,1.087127]
[1725557070305,0.001816,56541.0,56540.0,1.096127]
[1725557073597,0.001816,56541.0,56540.0,1.449858]
[1725557073807,0.001816,56541.0,56540.0,1.096127]
[1725557074016,0.001816,56541.0,56540.0,1.449858]
[1725557079837,0.001816,56541.0,56540.0,1.62536896]
[1725557080925,0.001816,56541.0,56540.0,1.97909996]
[1725557083074,0.001816,56541.0,56540.0,1.62536896]
[1725557083994,0.001816,56541.0,56540.0,1.97909996]
[1725557084215,0.001816,56541.0,56540.0,1.62536896]
[1725557085575,0.001816,56541.0,56540.0,1.97909996]
[1725557086009,0.001816,56541.0,56540.0,2.13909996]
[1725557086221,0.001816,56541.0,56540.0,2.23909996]
[1725557086894,0.001816,56541.0,56540.0,2.59283096]
[1725557087103,0.001816,56541.0,56540.0,2.64518924]
[1725557087314,0.001816,56541.0,56540.0,2.23909996]
[1725557087717,0.001816,56541.0,56540.0,2.23709996]
[1725557087870,0.000816,56541.0,56540.0,2.22909996]
[1725557088083,0.000816,56541.0,56540.0,2.22209996]
[1725557088286,0.000816,56541.0,56540.0,2.23609996]
[1725557088685,0.001816,56541.0,56540.0,2.23009996]
[1725557088936,0.001816,56541.0,56540.0,2.24209996]
[1725557089165,0.001816,56541.0,56540.0,2.67436839]
[1725557089382,0.001816,56541.0,56540.0,2.32063739]
[1725557089797,0.000816,56541.0,56540.0,2.23409996]
[1725557090227,0.000816,56541.0,56540.0,2.28659283]
[1725557090436,0.000816,56541.0,56540.0,2.058589]
[1725557090649,0.000816,56541.0,56540.0,2.23409996]
[1725557091301,0.000816,56541.0,56540.0,2.30059283]
[1725557091302,0.001816,56541.0,56540.0,2.30059283]
[1725557091727,0.001816,56541.0,56540.0,2.65432383]
[1725557091910,0.001816,56541.0,56540.0,2.24809996]
[1725557092166,0.001816,56541.0,56540.0,2.25009996]
[1725557092384,0.001816,56541.0,56540.0,2.35314119]
[1725557092614,0.001816,56541.0,56540.0,2.24809996]
[1725557092837,0.001816,56541.0,56540.0,2.37940023]
[1725557093282,0.001816,56541.0,56540.0,2.24809996]
[1725557093497,0.001816,56541.0,56540.0,2.37941693]
[1725557093959,0.001816,56541.0,56540.0,2.38941693]
[1725557094169,0.001816,56541.0,56540.0,2.28009996]
[1725557094391,0.001816,56541.0,56540.0,2.63383096]
[1725557095060,1e-06,56541.0,56540.0,2.63383096]
[1725557097191,1e-06,56541.0,56540.0,2.26809996]
[1725557097409,1e-06,56541.0,56540.0,2.40138227]
[1725557097625,1e-06,56541.0,56540.0,2.34889086]
[1725557097872,1e-06,56541.0,56540.0,2.73886869]
[1725557098098,1e-06,56541.0,56540.0,2.63383096]
[1725557099838,0.000817,56541.0,56540.0,2.63383096]
[1725557100076,0.000817,56541.0,56540.0,2.27809996]
[1725557100311,0.000817,56541.0,56540.0,2.33682283]
[1725557100540,0.000817,56541.0,56540.0,1.90529996]
[1725557100939,0.000817,56541.0,56540.0,1.54156896]
[1725557101828,0.000817,56541.0,56540.0,1.88166896]
[1725557102036,0.000817,56541.0,56540.0,2.23539996]
[1725557102450,0.000817,56541.0,56540.0,2.59913096]
[1725557102659,0.000817,56541.0,56540.0,2.26539996]
[1725557102883,0.000817,56541.0,56540.0,2.34412283]
[1725557103096,0.000817,56541.0,56540.0,2.62113096]
[1725557103301,0.000817,56541.0,56540.0,2.35662119]
[1725557103517,0.000817,56541.0,56540.0,2.27785682]
[1725557103736,0.000817,56541.0,56540.0,2.33037673]
[1725557104882,0.000817,56541.0,56540.0,2.68410773]
[1725557105094,0.000817,56541.0,56540.0,2.63158782]
[1725557105338,0.000817,56541.0,56540.0,2.35664912]
[1725557105551,0.000817,56541.0,56540.0,2.27785682]
[1725557107717,0.000817,56541.0,56540.0,2.63158782]
[1725557107928,0.000817,56541.0,56540.0,2.27785682]
[1725557108363,0.000817,56541.0,56540.0,2.35662434]
[1725557108596,0.000817,56541.0,56540.0,2.27785682]
[1725557108829,0.000817,56541.0,56540.0,2.33037467]
[1725557109103,0.000817,56541.0,56540.0,1.59408683]
[1725557109765,0.000817,56541.0,56540.0,1.54156896]
[1725557109970,0.000817,56541.0,56540.0,1.18783796]
[1725557110386,0.156017,56541.0,56540.0,0.912327]
[1725557110977,0.156016,56541.0,56540.0,0.898327]
[1725557111452,0.156016,56541.0,56540.0,0.899959]
[1725557111684,0.156016,56541.0,56540.0,0.913959]
[1725557111876,0.156016,56541.0,56540.0,0.885959]
[1725557112559,0.000816,56541.0,56540.0,1.23969]
[1725557112773,0.000816,56541.0,56540.0,1.25369]
[1725557113850,0.001816,56541.0,56540.0,1.26769]
[1725557117317,0.001816,56541.0,56540.0,0.913959]
[1725557117547,0.001816,56541.0,56540.0,0.560228]
[1725557117763,0.001816,56541.0,56540.0,0.206497]
[1725557117764,0.334216,56541.0,56540.0,0.206497]
[1725557117976,0.334216,56541.0,56540.0,0.560228]
[1725557118211,0.334216,56541.0,56540.0,0.029632]
[1725557118654,0.334216,56541.0,56540.0,0.206497]
[1725557119080,0.334216,56541.0,56540.0,0.029632]
[1725557119216,0.334216,56541.0,56540.0,0.206497]
[1725557119469,0.334216,56541.0,56540.0,0.560228]
[1725557119640,0.334216,56541.0,56540.0,0.206497]
[1725557120462,0.334216,56541.0,56540.0,0.560228]
[1725557121528,0.334216,56541.0,56540.0,0.913959]
[1725557121744,0.001816,56541.0,56540.0,0.913959]
[1725557121949,0.001816,56541.0,56540.0,0.560228]
[1725557122868,0.001816,56541.0,56540.0,0.029632]
[1725557122869,1.4917252,56541.0,56540.0,0.029632]
[1725557123021,0.540078,56541.0,56540.0,0.029632]
[1725557123437,0.893803,56541.0,56540.0,0.029632]
[1725557123664,0.892803,56541.0,56540.0,0.015632]
[1725557123915,0.363216,56541.0,56540.0,0.011632]
[1725557124115,0.540078,56541.0,56540.0,0.012632]
[1725557124322,0.540078,56541.0,56540.0,0.002632]
[1725557124323,0.539078,56541.0,56540.0,0.002632]
[1725557124577,0.539078,56541.0,56540.0,0.001632]
[1725557124795,0.542078,56541.0,56540.0,0.001632]
[1725557125230,0.5476716,56541.0,56540.0,0.001632]
[1725557125906,0.9013966,56541.0,56540.0,0.001632]
[1725557126331,0.61204015,56541.0,56540.0,0.001632]
[1725557126545,0.60704015,56541.0,56540.0,0.001632]
[1725557126744,0.85123735,56541.0,56540.0,0.001632]
[1725557127028,0.85623735,56541.0,56540.0,0.001632]
[1725557127872,1.20996235,56541.0,56540.0,0.001632]
[1725557129257,1.95041235,56541.0,56540.0,0.001632]
[1725557129471,2.46613735,56541.0,56540.0,0.001632]
[1725557129721,2.21041235,56541.0,56540.0,0.001632]
[1725557129950,0.7749822,56520.0,56519.0,0.4672]
[1725557130178,0.7749822,56520.0,56518.0,0.001632]
[1725557130179,0.176931,56519.0,56518.0,0.001632]
[1725557130410,0.2441972,56520.0,56518.0,0.001632]
[1725557130411,0.0005936,56520.0,56518.0,0.001632]
[1725557130633,0.0005936,56520.0,56519.0,0.176931]
[1725557130855,0.0005936,56520.0,56519.0,0.723394]
[1725557131758,0.0005936,56520.0,56518.0,0.001632]
[1725557131983,0.16,56519.0,56518.0,0.001632]
[1725557132223,0.690794,56519.0,56518.0,0.001632]
[1725557132445,1.0452506,56519.0,56518.0,0.001632]
[1725557132907,0.6913876,56519.0,56518.0,0.001632]
[1725557133332,0.0005936,56519.0,56518.0,0.356501]
[1725557133590,0.0005936,56519.0,56518.0,0.533435]
[1725557133822,0.0005936,56519.0,56518.0,0.532435]
[1725557134048,0.0005936,56519.0,56518.0,0.886304]
[1725557134263,0.0015936,56519.0,56518.0,0.886304]
[1725557134503,0.0015936,56519.0,56518.0,1.431173]
[1725557134715,0.0015936,56519.0,56518.0,1.579373]
[1725557134985,0.0015936,56519.0,56518.0,1.227504]
[1725557135205,0.0015936,56519.0,56518.0,1.225504]
[1725557136644,0.0015936,56519.0,56518.0,1.579373]
[1725557136876,0.0015936,56519.0,56518.0,1.75488396]
[1725557137310,0.0015936,56519.0,56518.0,1.225504]
[1725557137530,0.0005936,56519.0,56518.0,1.225504]
[1725557137746,0.0005936,56519.0,56518.0,0.886304]
[1725557137971,0.0005936,56519.0,56518.0,0.892304]
[1725557137972,0.0015936,56519.0,56518.0,0.892304]
[1725557138194,0.0025936,56519.0,56518.0,0.899304]
[1725557139367,0.0025936,56519.0,56518.0,0.545435]
[1725557140072,0.2441972,56523.0,56519.0,0.176929]
[1725557140282,0.4211162,56523.0,56520.0,0.176928]
[1725557140740,0.4211162,56523.0,56521.0,0.176924]
[1725557140741,0.2441972,56523.0,56521.0,0.176924]
[1725557141461,0.381316,56524.0,56521.0,0.176924]
[1725557141669,0.176926,56521.0,56519.0,0.002]
[1725557141879,0.5980352,56523.0,56519.0,0.002]
[1725557141880,0.353845,56522.0,56519.0,0.002]
[1725557142085,0.176922,56522.0,56521.0,0.003]
[1725557142520,0.4211162,56523.0,56521.0,0.003]
[1725557142725,0.353818,56527.0,56521.0,0.003]
[1725557142726,0.176912,56526.0,56522.0,0.17692]
[1725557142945,0.176915,56525.0,56522.0,0.17692]
[1725557143583,0.176916,56524.0,56521.0,0.176925]
[1725557144066,0.001,56526.0,56520.0,0.353854]
[1725557144280,0.176914,56525.0,56522.0,0.001]
[1725557144486,0.176914,56525.0,56521.0,0.176923]
[1725557144699,0.176914,56525.0,56521.0,0.177923]
[1725557144916,0.176916,56524.0,56521.0,0.179923]
[1725557145163,0.176912,56526.0,56521.0,0.001]
[1725557145369,0.176912,56526.0,56523.0,0.176918]
[1725557145630,0.176913,56525.0,56522.0,0.176921]
[1725557145877,0.176913,56525.0,56521.0,0.001]
[1725557145878,0.176916,56524.0,56521.0,0.001]
[1725557146095,0.176916,56524.0,56520.0,0.176927]
[1725557146096,0.176918,56524.0,56520.0,0.176927]
[1725557146357,0.4211162,56523.0,56520.0,0.176927]
[1725557146598,0.176931,56519.0,56518.0,0.001632]
[1725557146819,0.7749912,56519.0,56518.0,0.001632]
[1725557147039,0.4441282,56519.0,56518.0,0.001632]
[1725557147501,0.4211282,56519.0,56518.0,0.001632]
[1725557147821,0.7979912,56519.0,56518.0,0.001632]
[1725557148357,0.7979912,56519.0,56518.0,0.006632]
[1725557149218,0.7979912,56519.0,56518.0,0.010632]
[1725557149219,1.1518542,56519.0,56518.0,0.010632]
[1725557149428,0.7979912,56519.0,56518.0,0.010632]
[1725557149666,0.7979912,56519.0,56518.0,0.005632]
[1725557149880,0.7979912,56519.0,56518.0,0.004632]
[1725557150101,0.7979912,56519.0,56518.0,0.006632]
[1725557150337,0.7979912,56519.0,56518.0,0.003632]
[1725557150553,0.7979912,56519.0,56518.0,0.006632]
[1725557153980,0.55614,56523.0,56518.0,0.006632]
[1725557153981,0.5980372,56523.0,56518.0,0.006632]
[1725557154254,0.353825,56526.0,56518.0,0.006632]
[1725557154255,0.17691,56526.0,56518.0,0.006632]
[1725557154498,0.1,56533.0,56524.0,0.176913]
[1725557154499,0.176904,56528.0,56524.0,0.176913]
[1725557154741,0.353799,56530.0,56523.0,0.353835]
[1725557154742,0.353806,56529.0,56523.0,0.353834]
[1725557154929,0.176897,56530.0,56527.0,0.176905]
[1725557155185,0.2441972,56531.0,56527.0,0.176905]
[1725557155400,0.176897,56530.0,56527.0,0.176905]
[1725557155612,0.353782,56532.0,56527.0,0.353809]
[1725557155831,0.176897,56530.0,56527.0,0.176906]
[1725557156056,0.176902,56529.0,56526.0,0.176908]
[1725557156280,0.176902,56529.0,56525.0,0.176911]
[1725557156737,0.176903,56528.0,56525.0,0.176911]
[1725557156951,0.2441972,56527.0,56525.0,0.176912]
[1725557157182,0.4211042,56527.0,56523.0,0.530751]
[1725557157406,0.4211042,56527.0,56524.0,0.176913]
[1725557157621,0.176901,56529.0,56526.0,0.176908]
[1725557157834,0.176901,56529.0,56525.0,0.353825]
[1725557157835,0.5979792,56532.0,56527.0,0.353812]
[1725557158065,0.5979792,56532.0,56525.0,0.353825]
[1725557158066,0.005,56528.0,56526.0,0.176909]
[1725557158279,0.176898,56530.0,56526.0,0.176909]
[1725557158742,0.176898,56530.0,56527.0,0.176905]
[1725557158743,0.009,56529.0,56527.0,0.176905]
[1725557158961,0.009,56529.0,56528.0,0.176903]
[1725557159184,0.199895,56531.0,56528.0,0.176903]
[1725557159406,0.199895,56531.0,56528.0,0.176902]
[1725557159583,0.01,56530.0,56528.0,0.176902]
[1725557159994,0.176898,56530.0,56527.0,0.176905]
[1725557160212,0.000816,56531.0,56529.0,0.1769]
[1725557160437,0.000816,56531.0,56530.0,0.530691]
[1725557160685,0.000816,56531.0,56530.0,1.036785]
[1725557160906,0.000816,56531.0,56530.0,1.390579]
[1725557161136,0.000816,56531.0,56530.0,1.744373]
[1725557161356,0.000816,56531.0,56530.0,1.943373]
[1725557161577,0.005816,56531.0,56530.0,1.943373]
[1725557162244,0.005816,56531.0,56530.0,1.950373]
[1725557162490,0.005816,56531.0,56530.0,2.12588396]
[1725557162921,0.006816,56531.0,56530.0,2.13888396]
[1725557163392,0.005816,56531.0,56530.0,2.12588396]
[1725557163619,0.001816,56531.0,56530.0,2.13188396]
[1725557164073,0.001816,56531.0,56530.0,2.14588396]
[1725557164733,0.001816,56531.0,56530.0,2.15988396]
[1725557164934,0.000816,56531.0,56530.0,2.14688396]
[1725557165158,0.000816,56540.0,56539.0,1.238083]
[1725557165369,0.000816,56540.0,56539.0,2.36282916]
[1725557165630,0.000816,56540.0,56539.0,2.47482916]
[1725557165839,0.000816,56540.0,56539.0,2.54743043]
[1725557166071,0.000816,56540.0,56539.0,2.49482916]
[1725557166318,0.000816,56548.0,56539.0,2.49482916]
[1725557166319,0.000816,56548.0,56539.0,0.95552408]
[1725557166562,0.000816,56548.0,56547.0,2.1870932]
[1725557166786,0.000816,56548.0,56547.0,2.46260416]
[1725557167780,0.000816,56548.0,56547.0,2.042896]
[1725557167999,0.000816,56548.0,56547.0,1.589208]
[1725557168224,0.000816,56548.0,56547.0,0.544532]
[1725557168449,0.000816,56548.0,56539.0,0.014]
[1725557168450,0.000816,56548.0,56539.0,0.2031]
[1725557168671,0.000816,56548.0,56544.0,0.176853]
[1725557168898,0.000816,56548.0,56539.0,0.339]
[1725557168899,0.000816,56548.0,56545.0,0.176847]
[1725557169106,0.000816,56548.0,56547.0,0.014]
[1725557169328,0.531337,56548.0,56547.0,0.014]
[1725557169551,0.354497,56548.0,56540.0,0.353729]
[1725557169767,0.176845,56547.0,56539.0,0.1499]
[1725557169988,0.176847,56546.0,56544.0,0.011]
[1725557170638,0.354497,56548.0,56544.0,0.011]
[1725557170639,0.000816,56548.0,56544.0,0.011]
[1725557170920,0.000816,56548.0,56545.0,0.176849]
[1725557171131,0.000816,56548.0,56544.0,0.011]
[1725557171132,0.000816,56548.0,56544.0,0.001]
[1725557171349,0.000816,56548.0,56545.0,0.176849]
[1725557171572,0.17685,56545.0,56544.0,0.001]
[1725557171787,0.176854,56544.0,56540.0,0.176864]
[1725557171997,0.176849,56546.0,56542.0,0.176858]
[1725557172432,0.4210422,56547.0,56542.0,0.176856]
[1725557172648,0.353688,56547.0,56541.0,0.176861]
[1725557172858,0.176844,56547.0,56540.0,0.353731]
[1725557173076,0.177658,56548.0,56544.0,0.003]
[1725557173294,0.199844,56547.0,56544.0,0.179852]
[1725557173529,0.199844,56547.0,56544.0,0.003]
[1725557173741,0.023,56547.0,56544.0,0.003]
[1725557173950,0.023,56547.0,56544.0,0.176852]
[1725557174165,0.176851,56545.0,56542.0,0.176859]
[1725557175024,0.199846,56547.0,56542.0,0.176859]
[1725557175242,0.00307859,56544.0,56543.0,0.176854]
[1725557175675,0.00307859,56544.0,56538.0,0.353744]
[1725557175904,0.00307859,56544.0,56541.0,0.176861]
[1725557176323,0.17993159,56544.0,56539.0,0.176867]
[1725557176530,0.17993159,56544.0,56542.0,0.001]
[1725557176739,0.17993159,56544.0,56538.0,0.353744]
[1725557176740,0.176856,56543.0,56538.0,0.353744]
[1725557176947,0.176856,56543.0,56539.0,0.176867]
[1725557177172,0.176856,56543.0,56538.0,0.002]
[1725557177173,0.176869,56539.0,56538.0,0.002]
[1725557177396,0.2441972,56539.0,56530.0,0.1626]
[1725557177615,0.176891,56532.0,56528.0,0.4672]
[1725557177864,0.2441972,56534.0,56529.0,0.353799]
[1725557178079,0.2441972,56534.0,56528.0,0.4672]
[1725557178305,0.4440702,56538.0,56533.0,0.353775]
[1725557178585,0.4440702,56538.0,56533.0,0.176887]
[1725557178586,0.176876,56537.0,56533.0,0.176887]
[1725557178792,0.176882,56535.0,56531.0,0.176893]
[1725557179008,0.176885,56534.0,56530.0,0.176894]
[1725557179685,0.176878,56536.0,56530.0,0.35379]
[1725557179962,0.176878,56536.0,56532.0,0.176889]
[1725557180194,0.176878,56536.0,56533.0,0.176887]
[1725557180418,0.176878,56536.0,56531.0,0.006]
[1725557180641,0.176878,56536.0,56532.0,0.176889]
[1725557181103,0.177878,56536.0,56532.0,0.176889]
[1725557181325,0.177878,56536.0,56533.0,0.176887]
[1725557182011,0.177878,56536.0,56531.0,0.176893]
[1725557182012,0.176882,56535.0,56531.0,0.176893]
[1725557182476,0.17788,56536.0,56531.0,0.353785]
[1725557182699,0.17888,56536.0,56531.0,0.353785]
[1725557182924,0.002,56536.0,56531.0,0.353785]
[1725557183147,0.177879,56536.0,56532.0,0.176889]
[1725557183382,0.376748,56538.0,56533.0,0.176886]
[1725557183383,0.176876,56537.0,56533.0,0.176886]
[1725557183606,0.002,56535.0,56533.0,0.176886]
[1725557183828,0.001,56535.0,56533.0,0.176886]
[1725557184048,0.176876,56537.0,56533.0,0.176886]
[1725557184268,0.002,56536.0,56533.0,0.176886]
[1725557184947,0.002,56536.0,56535.0,0.676944]
[1725557185661,0.176863,56541.0,56537.0,0.176873]
[1725557186109,0.176867,56540.0,56535.0,0.500063]
[1725557186422,0.001,56536.0,56535.0,0.676944]
[1725557186655,0.176863,56541.0,56537.0,0.176874]
[1725557187122,0.176866,56540.0,56537.0,0.001]
[1725557187364,0.176866,56540.0,56537.0,0.176875]
[1725557187839,0.176866,56540.0,56532.0,0.001632]
[1725557187840,0.530662,56533.0,56532.0,0.001632]
[1725557188077,0.7748592,56533.0,56532.0,0.001632]
[1725557188312,0.7978592,56533.0,56532.0,0.001632]
[1725557188452,0.553662,56533.0,56532.0,0.001632]
[1725557189093,0.907437,56533.0,56532.0,0.001632]
[1725557189295,0.553662,56533.0,56532.0,0.002632]
[1725557189921,0.2053,56539.0,56532.0,0.002632]
[1725557189922,0.2450132,56545.0,56532.0,0.002632]
[1725557190161,0.353733,56540.0,56534.0,0.353768]